[Event "*** Titled Tuesday Blitz AM"]
[Site "Chess.com"]
[Date "2020.01.07"]
[Round "9"]
[White "NemtsevIgor"]
[Black "Kubas1010"]
[Result "1/2-1/2"]
[WhiteElo "2384"]
[BlackElo "2579"]
[TimeControl "180+2"]
[EndTime "11:05:19 PST"]
[Termination "Game drawn by agreement"]

1. d4 {[%clk 0:03:01.9]} 1... d5 {[%clk 0:03:00.6]} 2. Bf4 {[%clk 0:03:01.7]}
2... c5 {[%clk 0:03:00.6]} 3. e3 {[%clk 0:03:01.9]} 3... Nc6 {[%clk 0:03:01.6]}
4. c3 {[%clk 0:03:02.8]} 4... Qb6 {[%clk 0:02:51.6]} 5. Qb3 {[%clk 0:03:01.4]}
5... c4 {[%clk 0:02:52.2]} 6. Qc2 {[%clk 0:03:02.6]} 6... Nf6 {[%clk 0:02:52.9]}
7. Nd2 {[%clk 0:02:56.9]} 7... g6 {[%clk 0:02:53.8]} 8. e4 {[%clk 0:02:46.4]}
8... Nxe4 {[%clk 0:02:52.4]} 9. Nxe4 {[%clk 0:02:47.2]} 9... Bf5 {[%clk
0:02:53.6]} 10. f3 {[%clk 0:02:40.7]} 10... dxe4 {[%clk 0:02:54.5]} 11. fxe4
{[%clk 0:02:41.9]} 11... Bd7 {[%clk 0:02:50.9]} 12. Bxc4 {[%clk 0:02:37.1]}
12... Bg7 {[%clk 0:02:51.9]} 13. Ne2 {[%clk 0:02:31.1]} 13... O-O {[%clk
0:02:52.2]} 14. O-O {[%clk 0:02:27]} 14... e5 {[%clk 0:02:53.2]} 15. Be3 {[%clk
0:02:04]} 15... exd4 {[%clk 0:02:54.2]} 16. cxd4 {[%clk 0:02:03.2]} 16... Nxd4
{[%clk 0:02:55.1]} 17. Nxd4 {[%clk 0:02:03.9]} 17... Bxd4 {[%clk 0:02:55.6]} 18.
Bxd4 {[%clk 0:02:05.1]} 18... Qxd4+ {[%clk 0:02:57.5]} 19. Kh1 {[%clk
0:02:06.4]} 19... Rac8 {[%clk 0:02:52.8]} 20. Rad1 {[%clk 0:01:45.4]} 20... Rxc4
{[%clk 0:02:53.5]} 21. Rxd4 {[%clk 0:01:45.2]} 21... Rxc2 {[%clk 0:02:54.6]} 22.
Rxd7 {[%clk 0:01:46.3]} 22... Rxb2 {[%clk 0:02:56.3]} 23. h3 {[%clk 0:01:35.9]}
23... a5 {[%clk 0:02:52.5]} 24. a4 {[%clk 0:01:33.9]} 24... b5 {[%clk
0:02:49.2]} 25. axb5 {[%clk 0:01:34]} 25... Rxb5 {[%clk 0:02:50]} 26. Rf6 {[%clk
0:01:34.2]} 26... Re5 {[%clk 0:02:48.3]} 27. Ra6 {[%clk 0:01:30.4]} 27... Rc8
{[%clk 0:02:46.3]} 28. Rd5 {[%clk 0:01:22.7]} 28... Rxd5 {[%clk 0:02:39.9]} 29.
exd5 {[%clk 0:01:23.3]} 29... Rc5 {[%clk 0:02:41.5]} 30. d6 {[%clk 0:01:24.4]}
30... Rd5 {[%clk 0:02:42]} 31. d7 {[%clk 0:01:21.5]} 31... Rxd7 {[%clk
0:02:41.4]} 32. Rxa5 {[%clk 0:01:22.8]} 32... h5 {[%clk 0:02:42.4]} 33. Kh2
{[%clk 0:01:19.9]} 33... h4 {[%clk 0:02:34.4]} 34. Ra4 {[%clk 0:01:20.2]} 34...
g5 {[%clk 0:02:35.5]} 35. Ra5 {[%clk 0:01:21]} 35... f6 {[%clk 0:02:36.8]} 36.
Ra3 {[%clk 0:01:19.4]} 36... Kf7 {[%clk 0:02:33.2]} 37. Rb3 {[%clk 0:01:20.5]}
37... Kg6 {[%clk 0:02:34.3]} 38. Ra3 {[%clk 0:01:21.6]} 38... Kf5 {[%clk
0:02:33.8]} 39. Ra5+ {[%clk 0:01:22.1]} 39... Ke4 {[%clk 0:02:34.8]} 40. Ra4+
{[%clk 0:01:22.8]} 40... Ke5 {[%clk 0:02:36.3]} 41. Ra5+ {[%clk 0:01:24]} 41...
Rd5 {[%clk 0:02:37.6]} 42. Ra8 {[%clk 0:01:25.2]} 42... f5 {[%clk 0:02:38.6]}
43. Rg8 {[%clk 0:01:25.2]} 43... Kf4 {[%clk 0:02:39.6]} 44. Rf8 {[%clk
0:01:23.1]} 44... Rd2 {[%clk 0:02:40]} 45. Rf7 {[%clk 0:01:21]} 45... Ra2 {[%clk
0:02:37]} 46. Rf8 {[%clk 0:01:21.9]} 46... Ra6 {[%clk 0:02:36.8]} 47. Rf7 {[%clk
0:01:22.9]} 47... Ke5 {[%clk 0:02:37.8]} 48. Rg7 {[%clk 0:01:23]} 48... Kf4
{[%clk 0:02:37.5]} 49. Rf7 {[%clk 0:01:24]} 49... Rg6 {[%clk 0:02:38.6]} 50. Rf8
{[%clk 0:01:23.3]} 50... Rg7 {[%clk 0:02:38.9]} 51. Rf6 {[%clk 0:01:23]} 51...
Ke5 {[%clk 0:02:39.6]} 52. Rf8 {[%clk 0:01:24.1]} 52... Rg6 {[%clk 0:02:35.9]}
53. Rf7 {[%clk 0:01:23.6]} 53... f4 {[%clk 0:02:35.9]} 54. Kg1 {[%clk
0:01:19.1]} 54... Ra6 {[%clk 0:02:34]} 55. Kf2 {[%clk 0:01:18.4]} 55... Ra2+
{[%clk 0:02:32.7]} 56. Kf3 {[%clk 0:01:19.1]} 56... Ra3+ {[%clk 0:02:33.8]} 57.
Kf2 {[%clk 0:01:20.4]} 57... Ke4 {[%clk 0:02:34.9]} 58. Re7+ {[%clk 0:01:20.6]}
58... Kf5 {[%clk 0:02:35.9]} 59. Rf7+ {[%clk 0:01:21]} 59... Ke5 {[%clk
0:02:37.3]} 60. Re7+ {[%clk 0:01:21.9]} 60... Kf6 {[%clk 0:02:38.7]} 61. Rb7
{[%clk 0:01:22.8]} 61... Ra2+ {[%clk 0:02:38]} 62. Kf3 {[%clk 0:01:23.4]} 62...
Ra3+ {[%clk 0:02:38.1]} 63. Kf2 {[%clk 0:01:24.6]} 63... Re3 {[%clk 0:02:39.3]}
64. Rb6+ {[%clk 0:01:21.6]} 64... Kf5 {[%clk 0:02:40.6]} 65. Rb5+ {[%clk
0:01:22.7]} 65... Re5 {[%clk 0:02:41.9]} 66. Rb8 {[%clk 0:01:23.5]} 66... Ra5
{[%clk 0:02:41.5]} 67. Rf8+ {[%clk 0:01:23]} 67... Ke4 {[%clk 0:02:43.1]} 68.
Re8+ {[%clk 0:01:24.2]} 68... Re5 {[%clk 0:02:44.6]} 69. Rd8 {[%clk 0:01:22.8]}
69... Rd5 {[%clk 0:02:45.1]} 70. Re8+ {[%clk 0:01:23.8]} 70... Kf5 {[%clk
0:02:46.5]} 71. Rf8+ {[%clk 0:01:24.7]} 71... Kg6 {[%clk 0:02:48]} 72. Rg8+
{[%clk 0:01:25.6]} 72... Kf7 {[%clk 0:02:49.4]} 73. Ra8 {[%clk 0:01:26]} 73...
Rd3 {[%clk 0:02:49.7]} 74. Ra6 {[%clk 0:01:26]} 74... Rg3 {[%clk 0:02:48.2]} 75.
Rb6 {[%clk 0:01:26.2]} 75... f3 {[%clk 0:02:49.1]} 76. gxf3 {[%clk 0:01:24.7]}
76... Rxh3 {[%clk 0:02:50.3]} 77. Kg2 {[%clk 0:01:19.5]} 77... Rg3+ {[%clk
0:02:51.3]} 78. Kf2 {[%clk 0:01:20.8]} 78... Kg7 {[%clk 0:02:50.8]} 79. Ra6
{[%clk 0:01:21.2]} 79... g4 {[%clk 0:02:42.5]} 80. fxg4 {[%clk 0:01:21.5]} 80...
Rxg4 {[%clk 0:02:43.5]} 81. Kf3 {[%clk 0:01:21.6]} 81... Rg5 {[%clk 0:02:42]}
82. Ra4 {[%clk 0:01:19.7]} 82... h3 {[%clk 0:02:35.2]} 83. Rh4 {[%clk
0:01:19.6]} 1/2-1/2

[Event "*** Titled Tuesday Blitz AM"]
[Site "Chess.com"]
[Date "2020.01.07"]
[Round "9"]
[White "FedaMaster"]
[Black "IwkooO"]
[Result "0-1"]
[WhiteElo "2442"]
[BlackElo "2564"]
[TimeControl "180+2"]
[EndTime "11:05:20 PST"]
[Termination "IwkooO won by resignation"]

1. e4 {[%clk 0:03:00.5]} 1... b6 {[%clk 0:03:01.9]} 2. d4 {[%clk 0:02:54.5]}
2... Bb7 {[%clk 0:03:02.7]} 3. Bd3 {[%clk 0:02:51.3]} 3... e6 {[%clk 0:03:04]}
4. Nf3 {[%clk 0:02:51.5]} 4... Nf6 {[%clk 0:03:05.5]} 5. Qe2 {[%clk 0:02:49.5]}
5... d5 {[%clk 0:03:05.5]} 6. Nbd2 {[%clk 0:02:48.8]} 6... dxe4 {[%clk
0:03:04.1]} 7. Nxe4 {[%clk 0:02:49.3]} 7... Nbd7 {[%clk 0:03:05.1]} 8. Bg5
{[%clk 0:02:46]} 8... Be7 {[%clk 0:03:05.9]} 9. O-O-O {[%clk 0:02:44.7]} 9...
O-O {[%clk 0:03:06]} 10. h4 {[%clk 0:02:33.8]} 10... h6 {[%clk 0:03:00.3]} 11.
Bxf6 {[%clk 0:02:17.4]} 11... Nxf6 {[%clk 0:03:00.9]} 12. Rhe1 {[%clk
0:01:42.8]} 12... Qd5 {[%clk 0:02:46]} 13. Kb1 {[%clk 0:01:24.5]} 13... Rfd8
{[%clk 0:02:39.4]} 14. Nc3 {[%clk 0:00:47.6]} 14... Qh5 {[%clk 0:02:36.7]} 15.
g4 {[%clk 0:00:25.7]} 15... Qxg4 {[%clk 0:02:35.3]} 16. d5 {[%clk 0:00:22.1]}
16... Nxd5 {[%clk 0:02:29.9]} 17. Ne4 {[%clk 0:00:22.2]} 17... Nf4 {[%clk
0:02:28.6]} 18. Qe3 {[%clk 0:00:23.4]} 18... Nxd3 {[%clk 0:02:25.6]} 19. cxd3
{[%clk 0:00:24.2]} 19... Bc5 {[%clk 0:02:19.6]} 20. Qe2 {[%clk 0:00:20]} 20...
Qf4 {[%clk 0:02:06.7]} 21. Rg1 {[%clk 0:00:14.9]} 21... Rd7 {[%clk 0:01:54.8]}
22. Nfd2 {[%clk 0:00:13.3]} 22... Rad8 {[%clk 0:01:51.6]} 23. Rg4 {[%clk
0:00:13.6]} 23... Qf5 {[%clk 0:01:50.1]} 24. Rdg1 {[%clk 0:00:15.5]} 24... g6
{[%clk 0:01:48.3]} 25. h5 {[%clk 0:00:15.8]} 25... Rxd3 {[%clk 0:00:54]} 26.
hxg6 {[%clk 0:00:16.8]} 26... Rxd2 {[%clk 0:00:50.4]} 27. gxf7+ {[%clk
0:00:17.6]} 27... Kf8 {[%clk 0:00:51.9]} 28. Rg8+ {[%clk 0:00:18.7]} 28... Ke7
{[%clk 0:00:53.3]} 29. Rxd8 {[%clk 0:00:11.8]} 29... Bxe4+ {[%clk 0:00:51]} 30.
Ka1 {[%clk 0:00:11]} 30... Rxd8 {[%clk 0:00:48.8]} 31. Rg8 {[%clk 0:00:10.8]}
31... Qxf7 {[%clk 0:00:46.4]} 32. Rxd8 {[%clk 0:00:11.6]} 32... Kxd8 {[%clk
0:00:48.3]} 33. Qxe4 {[%clk 0:00:13]} 33... Qxf2 {[%clk 0:00:49.1]} 34. a3
{[%clk 0:00:11.5]} 34... Qf1+ {[%clk 0:00:49]} 35. Ka2 {[%clk 0:00:12.3]} 35...
Qf5 {[%clk 0:00:50.9]} 36. Qa8+ {[%clk 0:00:12.6]} 36... Ke7 {[%clk 0:00:51.9]}
37. Qxa7 {[%clk 0:00:14.5]} 37... Qd5+ {[%clk 0:00:53]} 38. Ka1 {[%clk
0:00:15.3]} 38... Bd6 {[%clk 0:00:52.8]} 39. Qa4 {[%clk 0:00:15.1]} 39... h5
{[%clk 0:00:54.3]} 40. Qh4+ {[%clk 0:00:15.7]} 40... Kd7 {[%clk 0:00:56]} 41.
Qf6 {[%clk 0:00:16.8]} 41... Be5 {[%clk 0:00:55.1]} 42. Qf2 {[%clk 0:00:17.6]}
42... Qd4 {[%clk 0:00:54.3]} 43. Qg2 {[%clk 0:00:18]} 43... Qxb2+ {[%clk
0:00:54.8]} 44. Qxb2 {[%clk 0:00:18.7]} 44... Kd6 {[%clk 0:00:56.4]} 45. Kb1
{[%clk 0:00:19.5]} 45... Bxb2 {[%clk 0:00:57.4]} 46. a4 {[%clk 0:00:20.1]} 46...
h4 {[%clk 0:00:57.9]} 47. a5 {[%clk 0:00:22]} 47... bxa5 {[%clk 0:00:59.8]} 0-1

[Event "*** Titled Tuesday Blitz AM"]
[Site "Chess.com"]
[Date "2020.01.07"]
[Round "9"]
[White "Gogolev_Artemy"]
[Black "Onegust"]
[Result "0-1"]
[WhiteElo "2433"]
[BlackElo "2562"]
[TimeControl "180+2"]
[EndTime "11:05:34 PST"]
[Termination "Onegust won by resignation"]

1. d4 {[%clk 0:03:01.9]} 1... Nf6 {[%clk 0:03:00.4]} 2. c4 {[%clk 0:03:00.9]}
2... e6 {[%clk 0:02:57.4]} 3. g3 {[%clk 0:02:57.8]} 3... c5 {[%clk 0:02:57.5]}
4. Nf3 {[%clk 0:02:56.3]} 4... cxd4 {[%clk 0:02:53.9]} 5. Nxd4 {[%clk
0:02:58.2]} 5... Qc7 {[%clk 0:02:48.4]} 6. b3 {[%clk 0:02:57.1]} 6... Nc6 {[%clk
0:02:46.5]} 7. Bg2 {[%clk 0:02:56]} 7... Bc5 {[%clk 0:02:29]} 8. Nb5 {[%clk
0:02:51.1]} 8... Qe5 {[%clk 0:02:25]} 9. N5c3 {[%clk 0:02:38.3]} 9... d5 {[%clk
0:01:27.4]} 10. Bf4 {[%clk 0:02:26.5]} 10... Qd4 {[%clk 0:01:17.9]} 11. Qxd4
{[%clk 0:01:40.6]} 11... Nxd4 {[%clk 0:01:19.8]} 12. Kd2 {[%clk 0:01:25.2]}
12... dxc4 {[%clk 0:01:19.4]} 13. bxc4 {[%clk 0:01:19.9]} 13... O-O {[%clk
0:01:19.6]} 14. Na4 {[%clk 0:01:14.3]} 14... Bb4+ {[%clk 0:01:17.4]} 15. Nbc3
{[%clk 0:01:12.9]} 15... Rd8 {[%clk 0:01:16.1]} 16. Rab1 {[%clk 0:01:08.2]}
16... a5 {[%clk 0:00:58.8]} 17. Rhd1 {[%clk 0:00:55.1]} 17... Bd7 {[%clk
0:00:54]} 18. Nb6 {[%clk 0:00:22.4]} 18... Ra6 {[%clk 0:00:25.2]} 19. Bc7 {[%clk
0:00:22]} 19... Re8 {[%clk 0:00:15.2]} 20. a3 {[%clk 0:00:19.4]} 20... Bxa3
{[%clk 0:00:09]} 21. Ke3 {[%clk 0:00:15.8]} 21... Bc5 {[%clk 0:00:09.1]} 22.
Nxd7 {[%clk 0:00:14.1]} 22... Nxd7 {[%clk 0:00:09.7]} 23. Bxb7 {[%clk
0:00:12.2]} 23... Ra7 {[%clk 0:00:09.1]} 24. Ke4 {[%clk 0:00:10.5]} 24... Nf6+
{[%clk 0:00:09.1]} 25. Kf4 {[%clk 0:00:11.7]} 25... e5+ {[%clk 0:00:08.8]} 26.
Bxe5 {[%clk 0:00:11.7]} 26... Nh5+ {[%clk 0:00:04]} 27. Kg4 {[%clk 0:00:07.6]}
27... Rxe5 {[%clk 0:00:04.9]} 28. e3 {[%clk 0:00:08.5]} 28... f5+ {[%clk
0:00:06.3]} 29. Kh4 {[%clk 0:00:09.2]} 29... Ne6 {[%clk 0:00:05.7]} 30. Kxh5
{[%clk 0:00:10]} 30... f4+ {[%clk 0:00:07.1]} 31. Kg4 {[%clk 0:00:11]} 31...
fxe3 {[%clk 0:00:09]} 32. fxe3 {[%clk 0:00:12.1]} 32... Rxe3 {[%clk 0:00:08.9]}
33. Nd5 {[%clk 0:00:13]} 33... Re5 {[%clk 0:00:09]} 34. Re1 {[%clk 0:00:13.3]}
34... h5+ {[%clk 0:00:09.8]} 35. Kf3 {[%clk 0:00:13.4]} 35... Nd4+ {[%clk
0:00:08.7]} 36. Kf2 {[%clk 0:00:13]} 36... Nc2+ {[%clk 0:00:10]} 37. Kf1 {[%clk
0:00:13.8]} 37... Rxe1+ {[%clk 0:00:10.6]} 38. Rxe1 {[%clk 0:00:14.1]} 38...
Nxe1 {[%clk 0:00:12.5]} 39. Kxe1 {[%clk 0:00:15.6]} 39... Rxb7 {[%clk 0:00:13]}
0-1

[Event "*** Titled Tuesday Blitz AM"]
[Site "Chess.com"]
[Date "2020.01.07"]
[Round "9"]
[White "Tayson_7"]
[Black "RojonR"]
[Result "1-0"]
[WhiteElo "2566"]
[BlackElo "2456"]
[TimeControl "180+2"]
[EndTime "11:05:38 PST"]
[Termination "Tayson_7 won on time"]

1. d4 {[%clk 0:03:01.9]} 1... Nf6 {[%clk 0:03:00.6]} 2. Nf3 {[%clk 0:02:56.7]}
2... e6 {[%clk 0:03:01.5]} 3. Bg5 {[%clk 0:02:57.1]} 3... d5 {[%clk 0:03:00.2]}
4. c4 {[%clk 0:02:57.8]} 4... c6 {[%clk 0:02:57.5]} 5. cxd5 {[%clk 0:02:55.7]}
5... exd5 {[%clk 0:02:56.5]} 6. Nc3 {[%clk 0:02:57.1]} 6... Be6 {[%clk
0:02:57.1]} 7. Qc2 {[%clk 0:02:56.9]} 7... Nbd7 {[%clk 0:02:57.6]} 8. e3 {[%clk
0:02:57.6]} 8... h6 {[%clk 0:02:58.5]} 9. Bh4 {[%clk 0:02:55.2]} 9... g5 {[%clk
0:02:59.2]} 10. Bg3 {[%clk 0:02:55.7]} 10... Nh5 {[%clk 0:03:00.1]} 11. Bd3
{[%clk 0:02:55.1]} 11... Nxg3 {[%clk 0:02:57.3]} 12. hxg3 {[%clk 0:02:57]} 12...
Bg7 {[%clk 0:02:58.6]} 13. O-O-O {[%clk 0:02:48.3]} 13... a5 {[%clk 0:02:58.7]}
14. Bf5 {[%clk 0:02:47.2]} 14... Qf6 {[%clk 0:02:51.8]} 15. g4 {[%clk
0:02:47.6]} 15... O-O {[%clk 0:02:24.7]} 16. Nxg5 {[%clk 0:02:31.4]} 16... Bxf5
{[%clk 0:02:15.6]} 17. gxf5 {[%clk 0:02:30.7]} 17... Qxg5 {[%clk 0:02:10.7]} 18.
g4 {[%clk 0:02:29.2]} 18... Nf6 {[%clk 0:02:01.2]} 19. Rdg1 {[%clk 0:02:24.4]}
19... Nxg4 {[%clk 0:01:16]} 20. Kb1 {[%clk 0:02:07.6]} 20... Kh8 {[%clk
0:00:55.4]} 21. f6 {[%clk 0:01:47.6]} 21... Qxf6 {[%clk 0:00:55.6]} 22. Rxg4
{[%clk 0:01:46.8]} 22... Rae8 {[%clk 0:00:46.6]} 23. Rhg1 {[%clk 0:01:43]} 23...
Rg8 {[%clk 0:00:46.2]} 24. R1g2 {[%clk 0:00:48]} 24... Qf3 {[%clk 0:00:28]} 25.
Qc1 {[%clk 0:00:29.9]} 25... Bf6 {[%clk 0:00:13.1]} 26. R2g3 {[%clk 0:00:18.7]}
26... Qxg4 {[%clk 0:00:11.7]} 27. Rxg4 {[%clk 0:00:19.8]} 27... Rxg4 {[%clk
0:00:13.6]} 28. Qh1 {[%clk 0:00:18.2]} 28... Bg7 {[%clk 0:00:11.9]} 29. Ne2
{[%clk 0:00:18.2]} 29... c5 {[%clk 0:00:09.6]} 30. Qh5 {[%clk 0:00:17.7]} 30...
Rg5 {[%clk 0:00:08.1]} 31. Qxf7 {[%clk 0:00:11.6]} 31... Rf8 {[%clk 0:00:08.3]}
32. Qxb7 {[%clk 0:00:12.8]} 32... cxd4 {[%clk 0:00:06.1]} 33. f4 {[%clk
0:00:10.6]} 1-0

[Event "*** Titled Tuesday Blitz AM"]
[Site "Chess.com"]
[Date "2020.01.07"]
[Round "9"]
[White "arjwezhrtdrz"]
[Black "FearlessKing64"]
[Result "1-0"]
[WhiteElo "2290"]
[BlackElo "2321"]
[TimeControl "180+2"]
[EndTime "11:05:39 PST"]
[Termination "arjwezhrtdrz won on time"]

1. e4 {[%clk 0:02:53]} 1... c5 {[%clk 0:02:57.1]} 2. c3 {[%clk 0:02:53.8]} 2...
g6 {[%clk 0:02:55.7]} 3. Nf3 {[%clk 0:02:53.4]} 3... Bg7 {[%clk 0:02:56.7]} 4.
a4 {[%clk 0:02:54.4]} 4... d5 {[%clk 0:02:53.3]} 5. d3 {[%clk 0:02:53.4]} 5...
dxe4 {[%clk 0:02:49.8]} 6. dxe4 {[%clk 0:02:54]} 6... Qxd1+ {[%clk 0:02:49.9]}
7. Kxd1 {[%clk 0:02:54.7]} 7... Nf6 {[%clk 0:02:49.6]} 8. Nfd2 {[%clk
0:02:55.9]} 8... O-O {[%clk 0:02:40.5]} 9. f3 {[%clk 0:02:55.2]} 9... Nc6 {[%clk
0:02:29.3]} 10. Kc2 {[%clk 0:02:55.4]} 10... Be6 {[%clk 0:02:20]} 11. Bc4 {[%clk
0:02:51.7]} 11... Bxc4 {[%clk 0:02:10.9]} 12. Nxc4 {[%clk 0:02:50.9]} 12... b6
{[%clk 0:02:06.1]} 13. Be3 {[%clk 0:02:50.7]} 13... Rfd8 {[%clk 0:01:51.4]} 14.
Nba3 {[%clk 0:02:51.3]} 14... Nd7 {[%clk 0:01:47.9]} 15. Rad1 {[%clk 0:02:49.7]}
15... Nde5 {[%clk 0:01:45.9]} 16. Bf4 {[%clk 0:02:46.7]} 16... Rxd1 {[%clk
0:01:18.1]} 17. Rxd1 {[%clk 0:02:45.9]} 17... Nxc4 {[%clk 0:01:19.9]} 18. Nxc4
{[%clk 0:02:44.9]} 18... Rd8 {[%clk 0:01:21]} 19. Rxd8+ {[%clk 0:02:45.1]} 19...
Nxd8 {[%clk 0:01:19.8]} 20. h3 {[%clk 0:02:36.6]} 20... Nc6 {[%clk 0:01:15.1]}
21. g4 {[%clk 0:02:33.6]} 21... Kf8 {[%clk 0:01:13.6]} 22. Kd3 {[%clk
0:02:29.6]} 22... Ke8 {[%clk 0:01:13.1]} 23. Be3 {[%clk 0:02:27.9]} 23... Kd7
{[%clk 0:01:12.5]} 24. Bf4 {[%clk 0:02:27.9]} 24... Ke6 {[%clk 0:01:05.7]} 25.
Bg3 {[%clk 0:02:28.5]} 25... f5 {[%clk 0:00:39.9]} 26. Ne3 {[%clk 0:02:23.1]}
26... fxg4 {[%clk 0:00:21]} 27. fxg4 {[%clk 0:02:09.7]} 27... Be5 {[%clk
0:00:20.6]} 28. Bh4 {[%clk 0:02:01.1]} 28... Bf4 {[%clk 0:00:20.8]} 29. Nc4
{[%clk 0:02:01.8]} 29... Ne5+ {[%clk 0:00:21.5]} 30. Nxe5 {[%clk 0:02:02.5]}
30... Bxe5 {[%clk 0:00:23.4]} 31. Bg5 {[%clk 0:01:59.8]} 31... a6 {[%clk
0:00:21.3]} 32. Kc4 {[%clk 0:01:54.3]} 32... Kd6 {[%clk 0:00:18.7]} 33. b4
{[%clk 0:01:45.8]} 33... cxb4 {[%clk 0:00:19.4]} 34. cxb4 {[%clk 0:01:47.1]}
34... h5 {[%clk 0:00:13.5]} 35. Be3 {[%clk 0:01:47.5]} 35... Kc6 {[%clk
0:00:13.1]} 36. b5+ {[%clk 0:01:48.2]} 36... axb5+ {[%clk 0:00:14.2]} 37. axb5+
{[%clk 0:01:49.5]} 37... Kc7 {[%clk 0:00:15.7]} 38. Kd5 {[%clk 0:01:50.2]} 38...
Bd6 {[%clk 0:00:13.6]} 39. Ke6 {[%clk 0:01:50.6]} 39... Bc5 {[%clk 0:00:11.2]}
40. Bg5 {[%clk 0:01:51.5]} 40... hxg4 {[%clk 0:00:12.5]} 41. hxg4 {[%clk
0:01:51]} 41... Kd8 {[%clk 0:00:14]} 42. Kf7 {[%clk 0:01:51.8]} 42... Kd7 {[%clk
0:00:15.7]} 43. Kxg6 {[%clk 0:01:48.5]} 43... Ke6 {[%clk 0:00:17]} 44. Bf4
{[%clk 0:01:49.8]} 44... Bd4 {[%clk 0:00:11]} 45. Bc7 {[%clk 0:01:48.5]} 45...
Kd7 {[%clk 0:00:08.9]} 46. Bf4 {[%clk 0:01:48.8]} 46... Ke6 {[%clk 0:00:10.5]}
47. g5 {[%clk 0:01:44.6]} 47... Bc3 {[%clk 0:00:06.4]} 48. Kh7 {[%clk
0:01:45.3]} 48... Bd4 {[%clk 0:00:03.8]} 49. g6 {[%clk 0:01:45.3]} 1-0

[Event "*** Titled Tuesday Blitz AM"]
[Site "Chess.com"]
[Date "2020.01.07"]
[Round "9"]
[White "Triumphmate"]
[Black "OK97"]
[Result "1-0"]
[WhiteElo "2664"]
[BlackElo "2833"]
[TimeControl "180+2"]
[EndTime "11:05:43 PST"]
[Termination "Triumphmate won by resignation"]

1. e4 {[%clk 0:03:01.9]} 1... e5 {[%clk 0:02:59.4]} 2. Nf3 {[%clk 0:02:57.9]}
2... Nc6 {[%clk 0:03:00.9]} 3. Nc3 {[%clk 0:02:58.3]} 3... Nf6 {[%clk
0:03:00.6]} 4. Bb5 {[%clk 0:02:56.5]} 4... Bd6 {[%clk 0:02:59.9]} 5. d3 {[%clk
0:02:50.2]} 5... O-O {[%clk 0:03:01.1]} 6. O-O {[%clk 0:02:40.2]} 6... Re8
{[%clk 0:02:58.7]} 7. Ba4 {[%clk 0:02:37.3]} 7... h6 {[%clk 0:02:55.7]} 8. a3
{[%clk 0:02:33.8]} 8... Bf8 {[%clk 0:02:55.9]} 9. Bb3 {[%clk 0:02:30.4]} 9... d6
{[%clk 0:02:57]} 10. h3 {[%clk 0:02:28.2]} 10... Be6 {[%clk 0:02:55.8]} 11. Nd5
{[%clk 0:02:26.8]} 11... Bxd5 {[%clk 0:02:55.4]} 12. exd5 {[%clk 0:02:27.8]}
12... Ne7 {[%clk 0:02:49.4]} 13. c4 {[%clk 0:02:26.6]} 13... Ng6 {[%clk
0:02:37.6]} 14. Re1 {[%clk 0:02:23.2]} 14... Nh7 {[%clk 0:02:33.1]} 15. Bc2
{[%clk 0:02:20.4]} 15... f5 {[%clk 0:02:33.3]} 16. Be3 {[%clk 0:02:06.6]} 16...
Qf6 {[%clk 0:02:25.8]} 17. Bd2 {[%clk 0:01:45.8]} 17... Be7 {[%clk 0:02:11.9]}
18. Bc3 {[%clk 0:01:42]} 18... Qf7 {[%clk 0:02:10]} 19. Ba4 {[%clk 0:01:25.6]}
19... Red8 {[%clk 0:02:06.1]} 20. g3 {[%clk 0:01:23.2]} 20... Bf6 {[%clk
0:01:50.5]} 21. Bc2 {[%clk 0:01:11]} 21... Rf8 {[%clk 0:01:49.1]} 22. h4 {[%clk
0:01:08.1]} 22... Ne7 {[%clk 0:01:44.9]} 23. d4 {[%clk 0:01:00.8]} 23... e4
{[%clk 0:01:45.1]} 24. Ne5 {[%clk 0:01:02.2]} 24... dxe5 {[%clk 0:01:36.2]} 25.
dxe5 {[%clk 0:01:04.1]} 25... Bxh4 {[%clk 0:01:37.9]} 26. gxh4 {[%clk
0:01:01.3]} 26... Ng6 {[%clk 0:01:30.8]} 27. Qh5 {[%clk 0:01:01.7]} 27... Nxe5
{[%clk 0:01:21.3]} 28. Qxf7+ {[%clk 0:01:02]} 28... Nxf7 {[%clk 0:01:22.6]} 29.
f3 {[%clk 0:00:59.9]} 29... exf3 {[%clk 0:00:54.4]} 30. Re7 {[%clk 0:00:57.2]}
30... Rfe8 {[%clk 0:00:45.3]} 31. Rae1 {[%clk 0:00:58.6]} 31... Rxe7 {[%clk
0:00:38.1]} 32. Rxe7 {[%clk 0:01:00.5]} 32... Kf8 {[%clk 0:00:27.3]} 33. Rxc7
{[%clk 0:00:57.6]} 33... Re8 {[%clk 0:00:28.9]} 34. Bxf5 {[%clk 0:00:54.1]}
34... Nf6 {[%clk 0:00:23.3]} 35. Be6 {[%clk 0:00:49.9]} 35... Nd6 {[%clk
0:00:13.8]} 36. Bb4 {[%clk 0:00:48.6]} 36... Rd8 {[%clk 0:00:13.8]} 37. c5
{[%clk 0:00:44.2]} 37... a5 {[%clk 0:00:07]} 38. Bxa5 {[%clk 0:00:39.4]} 38...
Nde4 {[%clk 0:00:04.2]} 39. Rf7+ {[%clk 0:00:33.6]} 39... Ke8 {[%clk 0:00:05.8]}
40. Bxd8 {[%clk 0:00:33.9]} 40... f2+ {[%clk 0:00:07.5]} 41. Kf1 {[%clk
0:00:31.6]} 41... Kxd8 {[%clk 0:00:08.1]} 42. c6 {[%clk 0:00:30]} 42... bxc6
{[%clk 0:00:08.1]} 43. dxc6 {[%clk 0:00:31.9]} 1-0